Cogmind - Beta 16.1 @@@ ROGUE MODE // 2026.02.14 @ 19:24:56 Player: Rudrot Result: Destroyed by S-10 Pest with Light Assault Rifle Performance ------------- Evolutions (0) 0 Regions Visited (3) 600 Robots Destroyed (41) 205 Value Destroyed (973) 973 Prototype IDs (1) 20 Alien Tech Used (0) 0 Bonus (-152) -152 TOTAL SCORE: 1646 Bonus ------- Follower Combat Kills 7 Friendly Fire -159 Cogmind --------- Core Integrity 0/250 Matter 198/300 Energy 200/200 System Corruption 9% Temperature Cool (0) Movement Walking (120) Location -10/Subcaves Parts ------- > --- POWER (1) -------- Subdweller Power Source > --- PROPULSION (2) --- Aluminum Leg Aluminum Leg > --- UTILITY (2) ------ Medium Storage Unit Signal Interpreter > --- WEAPON (2) ------- Advanced Beam Cannon > --- INVENTORY (10) --- Light Angular Momentum Engine Improved Heat Sink Experimental Sensor Array Terrain Scan Processor Advanced Beam Cannon Grenade Launcher Peak State ------------ > --- POWER ------------ Light Nuclear Core > --- PROPULSION ------- Aluminum Leg VSS Leg > --- UTILITY ---------- Medium Storage Unit Signal Interpreter > --- WEAPON ----------- Advanced Beam Cannon Advanced Beam Cannon > --- INVENTORY -------- Light Nuclear Core Aluminum Leg Aluminum Leg Improved Heat Sink Experimental Sensor Array Advanced Beam Cannon Grenade Launcher Grenade Launcher Rocket Launcher [Rating: 17] Favorites ----------- Power Light Nuclear Core Engine Light Angular Momentum Engine Power Core Light Nuclear Core Propulsion Aluminum Leg Leg Aluminum Leg Utility Signal Interpreter Device Heat Sink Storage Medium Storage Unit Processor Signal Interpreter Weapon Advanced Beam Cannon Energy Gun Small Laser Energy Cannon Advanced Beam Cannon Ballistic Gun Light Assault Rifle Launcher Rocket Launcher Build | -11 -10 -10 -10 ------- Run | Yrd Mat Min Sub Slots Evolved . | . . . . Power . | . . . . Propulsion . | . . . . Utility . | . . . . Weapon . | . . . . Parts Attached 37 | 7 19 9 2 Power 5 | 1 1 2 1 Engine 3 | 1 . 1 1 Core 2 | . 1 1 . Reactor . | . . . . Propulsion 16 | 2 8 5 1 Treads . | . . . . Leg 16 | 2 8 5 1 Wheel . | . . . . Hover . | . . . . Flight . | . . . . Utility 6 | 2 4 . . Device 3 | 1 2 . . Storage 2 | 1 1 . . Processor 1 | . 1 . . Hackware . | . . . . Protection . | . . . . Artifact . | . . . . Weapon 10 | 2 6 2 . Energy Gun 2 | 1 1 . . Energy Cannon 4 | . 4 . . Ballistic Gun 1 | 1 . . . Ballistic Cannon . | . . . . Launcher 3 | . 1 2 . Special Weapon . | . . . . Impact Weapon . | . . . . Slashing Weapon . | . . . . Piercing Weapon . | . . . . Special Melee Weapon . | . . . . Unidentified Prototypes 1 | . 1 . . Corrupted Parts 1 | . . 1 . System Corruption 8 | . . 8 . Parts Lost 5 | . . . 5 Power 1 | . . . 1 Propulsion 2 | . . . 2 Utility . | . . . . Weapon 2 | . . . 2 Highest Loss Streak 3 | . . . 3 To Critical Strikes . | . . . . Average Backups 8 | 1 7 9 8 Power . | . 1 1 1 Propulsion 2 | . 1 2 1 Utility 1 | . . 1 3 Weapon 4 | . 3 4 3 Tool/Special . | . . . . Unused Backups 4 | . 2 . 2 Power 1 | . 1 . . Propulsion . | . . . . Utility 2 | . . . 2 Weapon 1 | . 1 . . Tool/Special . | . . . . Average Slot Usage (%) 94 | . 97 93 85 Engine 4 | . 5 2 10 Core 9 | . 8 11 2 Leg 27 | . 28 27 28 Device 1 | . 3 . . Storage 12 | . 8 14 14 Processor 13 | . 13 14 14 Energy Gun 3 | . 9 . . Energy Cannon 16 | . 16 18 7 Launcher 2 | . 1 3 7 Peak Build Rating 17 | 7 16 17 17 Average Rating 13 | 4 11 14 14 On Entrance 8 | . 7 13 15 Avg Prop Armor Cover (%) . | . . . . Naked Turns . | . . . . Heaviest Build 26 | 12 23 26 23 Greatest Support 22 | 20 20 22 22 Greatest Overweight (x) 2 | 2 1 1 1 Average Overweight (x) . | . . . . Largest Inventory Capacity 10 | 8 10 10 10 Average Capacity 9 | 7 7 10 10 Most Carried 10 | 2 10 10 10 Average Carried 8 | 1 7 9 8 Final Capacity 10 | 8 10 10 10 Final Carried 10 | 2 10 10 6 Class Distribution -------------------- 98% | Mutant Dominant Class ---------------- Mutant | -10/Materials Mutant | -10/Mines Mutant | -10/Subcaves Resources | -11 -10 -10 -10 ----------- Run | Yrd Mat Min Sub Matter Collected 1030 | 274 260 265 231 Remotely . | . . . . Salvage Created 1272 | 116 695 230 231 Parts 81 | 5 45 19 12 Haulers Intercepted 2 | . 2 . . Recyclers Shooed . | . . . . Parts Field Recycled . | . . . . Retrieved Matter . | . . . . Parts Self-Destructed 5 | . . . 5 Prevented . | . . . . Parts Restored . | . . . . Kills | -11 -10 -10 -10 ------- Run | Yrd Mat Min Sub Combat Hostiles Destroyed 28 | . 14 7 7 Guns 2 | . 2 . . Cannons 19 | . 11 5 3 AOE 5 | . . 2 3 Classes Destroyed 9 | 2 6 1 . Worker 4 | . 3 1 . Builder 1 | . . 1 . Tunneler 2 | 1 1 . . Hauler 2 | . 2 . . Recycler 1 | 1 . . . Watcher 2 | . 2 . . Swarmer 7 | . 2 5 . Grunt 12 | . 11 1 . Subdweller 8 | . 1 . 7 Thug 1 | . . 1 . Best Kill Streak 5 | 1 5 3 3 Combat Bots Only 3 | . 2 3 3 Max Kills in Single Turn 3 | 1 1 3 2 Gunslinging . | . . . . Exploded 2 | . . 2 2 Melee . | . . . . Uniques/NPCs Destroyed 1 | . . 1 . YI-UF0 (-10/Mines) Combat | -11 -10 -10 -10 -------- Run | Yrd Mat Min Sub Hostile Shots Fired 120 | . 67 17 36 Missed 42 | . 22 8 12 Hits 78 | . 45 9 24 Projectile 78 | . 45 9 24 AOE 3 | . . 3 . Critical Strikes 2 | . 1 . 1 Damage Taken 1414 | . 563 316 535 Core 252 | . 84 52 116 Absorbed by Shields . | . . . . Core Remaining (%) 100 | 100 . . . Volleys Fired 129 | 4 63 22 40 Largest 2 | 2 2 2 2 Hottest 136 | 60 136 136 136 Shots Fired 202 | 8 112 36 46 Gun 30 | 8 18 4 . Cannon 144 | . 90 22 32 Launcher 28 | . 4 10 14 Special . | . . . . Kinetic 4 | 4 . . . Thermal 165 | . 107 26 32 Explosive 28 | . 4 10 14 Electromagnetic 5 | 4 1 . . Robot Hit Streak 13 | 3 9 4 13 Robot Miss Streak 6 | 2 6 2 2 Penetration Max . | . . . . Secondary Targets . | . . . . Shots Hit Robots 101 | 4 61 14 22 Core Hits 52 | 3 26 12 11 Critical Kills 2 | . 1 . 1 Critical Parts Destroyed . | . . . . Critical Strikes 2 | . 1 . 1 Meltdown 2 | . 1 . 1 Melee Attacks . | . . . . Impact . | . . . . Slashing . | . . . . Piercing . | . . . . Sneak Attacks . | . . . . Combat Hostiles . | . . . . Follow-up Attacks . | . . . . Damage Inflicted 2754 | 44 1283 462 965 Guns 174 | 44 109 21 . Cannons 1636 | . 1059 265 312 Explosions 944 | . 115 176 653 Melee . | . . . . Ramming . | . . . . Kinetic 14 | 14 . . . Thermal 1903 | . 1168 423 312 Explosive 807 | . 115 39 653 Electromagnetic 30 | 30 . . . Impact . | . . . . Slashing . | . . . . Piercing . | . . . . Highest Corruption 9 | . 1 9 9 Average Corruption 4 | . 1 4 9 Corruption Purged . | . . . . Corruption Blocked . | . . . . Effects 49 | . 3 34 12 Message Errors 8 | . . 5 3 Matter Fused 14 | . . 12 2 Heat Flow Errors 7 | . 1 4 2 Energy Discharges 4 | . 1 2 1 Data Loss (minor) 7 | . . 5 2 Data Loss (major) 2 | . 1 . 1 Misfires 5 | . . 5 . Alerts 1 | . . 1 . Weapon Failures 1 | . . . 1 Overload Shots . | . . . . Overflow Damage 28 | . 23 1 4 Projectiles 17 | . 17 . . Explosions 11 | . 6 1 4 Melee . | . . . . Knockbacks . | . . . . Impact . | . . . . Kinetic . | . . . . Secondary . | . . . . Self-Inflicted Damage 107 | . . 59 48 Shots 5 | . . 2 3 Rammed . | . . . . Targets Rammed . | . . . . Kicked . | . . . . Crushed . | . . . . Highest Temperature 448 | 20 448 273 165 Average Temperature 128 | 10 155 96 56 Received Heat Transfer 351 | . 249 57 45 Effects 9 | . 6 3 . Shutdowns 1 | . 1 . . Energy Bleed 4 | . 4 . . Interference 4 | . 1 3 . Siege Activations . | . . . . Martial Activations . | . . . . Shielding Activations . | . . . . Robots Disrupted . | . . . . Combat Hostiles . | . . . . Robots Corrupted . | . . . . Combat Hostiles . | . . . . Parts Fried . | . . . . Impact Corruptions . | . . . . Robots Melted 2 | . 1 . 1 Combat Hostiles 2 | . 1 . 1 Parts Melted 7 | . 4 1 2 Heat Transferred 3410 | . 2174 681 555 Parts Sabotaged . | . . . . Parts Stolen . | . . . . Parts Stripped . | . . . . Power Chain Reactions . | . . . . Alert | -11 -10 -10 -10 ------- Run | Yrd Mat Min Sub Maximum Alert Level . | . . . . Low Security (%) 100 | 100 100 100 . Level 1 . | . . . . Level 2 . | . . . . Level 3 . | . . . . Level 4 . | . . . . Level 5 . | . . . . High Security . | . . . . Max Security . | . . . . Peak Influence 174 | 5 113 174 . Initial 13 | . . 13 . Average 35 | 1 52 25 . Influence Increases 827 | 10 452 335 30 Destroy 0b10 Robot/C 400 | . 260 140 . Destroy 0b10 Robot/NC 60 | 10 40 10 . Destroy Leader 88 | . 58 30 . Allied During Kill 8 | . . 8 . Successful Hack 14 | . 14 . . Disable Machine 105 | . 15 90 . Destroy Structure 77 | . 20 57 . Lose Combat Pursuer 75 | . 45 . 30 Influence Decreases 797 | 10 418 369 . Entered New Map 21 | . . 21 . Time Decay 776 | 10 418 348 . Squads Dispatched 3 | . 3 . . Investigation 2 | . 2 . . Extermination . | . . . . Reinforcement 1 | . 1 . . Assault . | . . . . Garrison . | . . . . Intercept . | . . . . Searches Triggered . | . . . . Construction Impeded . | . . . . Haulers Reinforced . | . . . . Active Scanning Responses . | . . . . Cargo Convoy Interrupts . | . . . . Stealth | -11 -10 -10 -10 --------- Run | Yrd Mat Min Sub Distress Signals . | . . . . Communications Jammed . | . . . . Distress Signals . | . . . . Times Spotted 47 | . 29 7 11 Peak Tracking Total 4 | . 3 3 4 Tactical Retreats 6 | . 3 . 3 Traps | -11 -10 -10 -10 ------- Run | Yrd Mat Min Sub Traps Triggered 5 | . 3 2 . Indirectly . | . . . . Trap Hack Attempts . | . . . . Triggered . | . . . . Disarmed . | . . . . Reprogrammed . | . . . . Reused . | . . . . Traps Extracted . | . . . . Installed . | . . . . Triggered . | . . . . Machines | -11 -10 -10 -10 ---------- Run | Yrd Mat Min Sub Machines Disabled 7 | . 1 6 . Max in Single Turn 6 | . 1 6 . Machines Repaired . | . . . . Machines Dismantled . | . . . . Machines Sabotaged . | . . . . Overloaded Fab Kills . | . . . . Hacking | -11 -10 -10 -10 --------- Run | Yrd Mat Min Sub Machines Accessed 2 | . 1 1 . Terminals 1 | . 1 . . Fabricators . | . . . . Repair Stations . | . . . . Recycling Units . | . . . . Scanalyzers . | . . . . Garrison Access . | . . . . Total Hacks 3 | . 2 1 . Successful 2 | . 1 1 . Failed 1 | . 1 . . Catastrophic . | . . . . Database Lockouts . | . . . . Manual . | . . . . Terminals 2 | . 2 . . Fabricators . | . . . . Repair Stations . | . . . . Recycling Units . | . . . . Scanalyzers . | . . . . Garrison Access . | . . . . Terminal Hacks 2 | . 1 1 . Open Door 1 | . . 1 . Locate Traps 1 | . 1 . . Fabricator Hacks . | . . . . Repair Station Hacks . | . . . . Recycling Unit Hacks . | . . . . Scanalyzer . | . . . . Garrison Access Hacks . | . . . . Unauthorized Hacks . | . . . . Terminals . | . . . . Fabricators . | . . . . Repair Stations . | . . . . Recycling Units . | . . . . Scanalyzers . | . . . . Garrison Access . | . . . . Data Cores Recovered . | . . . . Used . | . . . . Hacking Detections 1 | . 1 . . Full Trace Events . | . . . . Feedback Events . | . . . . Feedback Blocked . | . . . . Robot Schematics Acquired . | . . . . Robots Built . | . . . . Authchips . | . . . . Time . | . . . . Total Robot Build Rating . | . . . . Part Schematics Acquired . | . . . . Parts Built . | . . . . Authchips . | . . . . Time . | . . . . Total Part Build Rating . | . . . . Part Studies Acquired . | . . . . Parts Repaired . | . . . . Time . | . . . . Parts Recycled . | . . . . Recycled Matter . | . . . . Retrieved Matter . | . . . . Retrieved Components . | . . . . Parts Scanalyzed . | . . . . Part Schematics Acquired . | . . . . Parts Damaged . | . . . . Bothacking | -11 -10 -10 -10 ------------ Run | Yrd Mat Min Sub Used RIF Installer . | . . . . Robots Hacked . | . . . . Non-combat . | . . . . Combat . | . . . . Robot Hacks Applied . | . . . . Relay Couplers Released . | . . . . Fabnet Peak Effective % . | . . . . Robots Rewired . | . . . . Allies Hacked . | . . . . Hacks Repelled . | . . . . Allies | -11 -10 -10 -10 -------- Run | Yrd Mat Min Sub Total Allies 1 | . . 1 . Largest Group 1 | . . 1 . Highest-Rated Group 31 | . . 31 . Highest-Rated Ally 31 | . . 31 . Total Orders . | . . . . Ally Attacks 12 | . . 12 . Total Damage 124 | . . 124 . Kills 1 | . . 1 . Allies Corrupted . | . . . . Allies Melted . | . . . . Intel | -11 -10 -10 -10 ------- Run | Yrd Mat Min Sub Active Infowar (turns) 51 | 18 33 . . Seismic 51 | 18 33 . . Robot Analysis Total . | . . . . Derelict Logs Recovered . | . . . . Drone Launches . | . . . . Drone Recoveries . | . . . . Exploration | -11 -10 -10 -10 ------------- Run | Yrd Mat Min Sub Turns Passed 3650 | 78 1258 1905 409 Spaces Moved 2206 | 50 844 1111 201 Core 15 | 15 . . . Treads . | . . . . Legs 2191 | 35 844 1111 201 Wheels . | . . . . Hover . | . . . . Flight . | . . . . Fastest Speed 50 | 50 120 105 105 Average Speed 142 | 107 120 157 154 Slowest Speed 190 | 150 190 190 190 Overloaded Moves . | . . . . Propulsion Burnouts . | . . . . Robots Hopped . | . . . . Potential Cave-ins . | . . . . Cave-ins Triggered . | . . . . Exploration Rate (%) 54 | 3 96 99 19 Regions Visited 3 Branch Regions 2 Pre-discovered Areas 1 | . . 1 . Known Exits Taken 2 | . 1 1 . Unknown Exits Taken 1 | 1 . . . Scrap Searched 1 | . . 1 . Spaces Dug 91 | . . 52 39 Terrain Destroyed 230 | . 20 100 110 Melee . | . . . . Projectile 2 | . . . 2 AOE 228 | . 20 100 108 Terrain Rammed . | . . . . Walls Destroyed . | . . . . Machines Disabled . | . . . . Actions | -11 -10 -10 -10 --------- Run | Yrd Mat Min Sub Total 2535 | 64 981 1236 254 Wait 85 | . 16 69 . Move 2203 | 49 843 1110 201 Hop . | . . . . Pick Up 17 | 3 10 4 . Fast Attach 18 | 7 8 2 1 Attach 16 | . . 8 8 Detach 16 | . 6 6 4 Swap 21 | . 14 7 . Drop 30 | 1 21 8 . Fire 129 | 4 63 22 40 Melee . | . . . . Ram . | . . . . Kick . | . . . . Crush . | . . . . Escape Stasis . | . . . . Rewire . | . . . . Trap . | . . . . Miscellaneous . | . . . . Route ------- -11/Scrapyard -10/Materials (discovered 6 exits: *Mat x3 / *Min x2 / *Sub) -10/Mines (discovered 3 exits: *Mat x2 / *Sub) -10/Subcaves History --------- Turn | Location | Event 6 | -11/Scrapyard | Discovered new exit (range 16) 79 | -11/Scrapyard | Entered Materials 299 | -10/Materials | Discovered new exit (range 16) 304 | -10/Materials | Build established: Mutant 363 | -10/Materials | Identified exit to Materials 706 | -10/Materials | Discovered new exit (range 14) 722 | -10/Materials | Identified exit to Mines 779 | -10/Materials | Derelicts attacked the area 864 | -10/Materials | Discovered exit to Materials (range 16) 1165 | -10/Materials | Discovered new exit (range 15) 1180 | -10/Materials | Identified exit to Subcaves 1227 | -10/Materials | Discovered exit to Materials (range 4) 1309 | -10/Materials | Discovered exit to Mines (range 16) 1337 | -10/Materials | Entered Mines 1348 | -10/Mines | Escorted by a lone wolf Derelict 1368 | -10/Mines | Learned location of Storage (-9) 1431 | -10/Mines | Received a Rocket Launcher from a helpful Derelict 1502 | -10/Mines | Destroyed YI-UF0 1815 | -10/Mines | Found a hidden stash of uninstalled traps 2025 | -10/Mines | Found a damaged Exp. Sensor Array with a note attached 2032 | -10/Mines | Found Prototype Device 2150 | -10/Mines | Discovered exit to Materials (range 8) 2417 | -10/Mines | Discovered exit to Materials (range 7) 2454 | -10/Mines | Met a Derelict who couldn't figure out how to use a Trap Extractor 2474 | -10/Mines | Core integrity fell below 50% 2584 | -10/Mines | Discovered exit to Subcaves (range 6) 3242 | -10/Mines | Entered Subcaves 3243 | -10/Subcaves | Approached by a straggling Scientist 3423 | -10/Subcaves | Ambushed by Subdweller buried in earth 3427 | -10/Subcaves | Ambushed by Subdweller buried in earth 3461 | -10/Subcaves | Ambushed by Subdweller buried in earth 3472 | -10/Subcaves | Core integrity fell below 20% 3612 | -10/Subcaves | Lost 3 parts (1p1n1w) 3635 | -10/Subcaves | Shifting Twisted Machinery released Battle Cannon 3641 | -10/Subcaves | Shifting Twisted Machinery released Mak. Light Armor Plating 3651 | -10/Subcaves | Destroyed by S-10 Pest with Light Assault Rifle Last Messages --------------- (Meltdown). 03579_ Adv. Beam Cannon destroyed. 03581_ VSS Leg destroyed. 03581_ Sub. Power Source melted. 03581_ YJ-0T2(R) destroyed. 03584_ Acquired 30 matter. 03585_ System corrupted: Heat flow error (+210). 03586_ Acquired 56 matter. 03588_ Acquired 34 matter. 03596_ Acquired Sub. Power Source. 20-4Q1(c): "I think it's somewhere northeast of here" 03600_ System corrupted: Component data lost. 03628_ System corrupted: Energy discharge (-62). Battle Cannon falls loose from the Twisted Machinery. Mak. Light Armor Plating falls loose from the Twisted Machinery. 20-4Q1(c): "I think it's somewhere northeast of here" Map ----- +----------------------------------------------------+ | # ##????????????????????????????????????????????? | | #????????????????????????????????????????????? | | # #????????????????????????????????????????????? | | # ##???????????????????????????????????????????? | | #???????????????????????????????????????????? | | # ###???????????????????????????????????????????? | | ##?????????????????????????????????????????????? | | #??????????????????????????????????????????????? | | #??????????????????????????????????????????????? | | ###??????????????????????????????????????????????? | | ????######???????????????????????????????????????? | | #####"" ##?????????????????? ???????????????????? | | #"##"" #????????##??????? ?????????????????? | | " ##????????# #?????? ??????????????????? | | ## " "" ##????##???# #????? ??????????????????? | | ###""""##?????" ??? ##### ???????????????????? | | ##""""##??????? ?? ???????????????????? | | """##????????? ### #???????????????????? | | """##??????????? s& #???##??????????????? | | "####?????????????=%! ### "???????????????? | | "#??#####????????? s " ????????????????? | | ##?##" #?????????? ??????????????????? | | "#?#"" ##??????????# ???????????????????? | | ""### #???????????# ????????????????????? | | " ## ###??####????# #?????????????????????? | | ## #### ##???# @ #?????????????????????? | | ## ## #??## #?????????????????????? | | " #?# #### ##?????????????????????? | | "#?# ### # ##?????????????????????? | | ##### " # "#?????????????????????? | | #?# """ c# ""#?????????????????????? | | ### "" ## ### ]"! #??????????????????? | | # ### #?## ##??????????????????? | | ## ###? ??# #???????????????????? | | ##### ##??# ?? #??????????????????? | | #???# ## #???## ? ?????????????????? | | ####???#### #????## ? ????????????????? | | #?????????# ??????# ???????????????? | | #????????? ?????? ??????????????? | | #???????? ?????# ??????????????? | | ???????? ???????# ## ??????????????? | | ????????? ????????# ? #? ????????????????? | | ????????? ###??????????# ?? ??????????????????? | | ????????????????????????#??????????????????????? | | ???????????????????????????????????????????????? | | ???????????????????????????????????????????????? | | ???????????????????????????????????????????????? | | ##???????????????????????????????????????????????? | | ?????????????????????????????????????????????????? | | ?????????????????????????????????????????????????? | +----------------------------------------------------+ Best States ------------- Heat Dissipation 39 Energy Generation 18 Energy Capacity 200 Matter Stores 300 Matter Capacity 300 Sight Range 16 Terrain Scan Density 10 Evasion (%) 55 Item Schematics ----------------- None Robot Schematics ------------------ None Fabricated ------------ Nothing Repaired ---------- Nothing Studied --------- None Alien Tech Used ----------------- None Achievements -------------- A Problem For Future Me My Bad Challenges ------------ None Game ------ Seed HelicalCouplerMicrothruster Manual? 0 Play Time 00:36:31 Cumulative 39.4 hours Start 2026.02.14 @ 18:30:05 End 2026.02.14 @ 19:24:56 Sessions 1 Manual Loads 0 Difficulty Rogue Special Mode None Game No. 44 Rogue 44 Adventurer 0 Explorer 0 Win Type - Total 0 Types 0/0/0/0/0/0/0/0/0/0 Lore% 16 Gallery% 16 Achievement% 15 Wizard Run 0 Options --------- Layout 1 ASCII 0 Keyboard 1 Movement Numpad Keybinds 0 Fullscreen 2 Font 24/Cog Map View 50x35 Zoom Use 0% Tactical HUD 1 Map Filters NONE Filters NONE Steam 1 RUN: edb53b39-1a38-4cc5-9567-2c216d5cdcaa